bitfinex-derivatives/quotes_ETHF0:USTF0_20251031
["timestamp","ask_amount","ask_price","bid_price","bid_amount"]
[1761914922008,1.95460609,3843.1,3843.0,1.919]
[1761914922214,1.36720609,3843.1,3843.0,1.919]
[1761914922811,1.95460609,3843.1,3843.0,1.919]
[1761914923115,1.95460609,3843.1,3843.0,1.1356]
[1761914923713,1.95460609,3843.1,3843.0,0.5686]
[1761914924111,2.3052,3843.0,3842.9,9.44393606]
[1761914924418,2.3052,3843.0,3842.9,0.54913606]
[1761914924610,1.952,3842.3,3842.2,0.5472]
[1761914924809,1.952,3842.3,3842.2,1.1084]
[1761914925614,1.952,3842.3,3842.2,1.11109279]
[1761914925821,1.952,3842.3,3842.2,0.00269279]
[1761914927023,1.3646,3841.4,3841.3,5.0996]
[1761914927216,0.5779,3841.9,3841.8,0.5612]
[1761914927420,0.3532,3842.0,3841.4,1.8918]
[1761914927421,0.5779,3841.5,3841.4,1.8918]
[1761914927920,1.3646,3841.5,3841.4,42.6918]
[1761914928230,2.3052,3841.5,3841.4,41.34906191]
[1761914928829,2.3052,3841.5,3841.4,40.80186191]
[1761914929126,0.3532,3842.5,3841.4,5.10146191]
[1761914929127,3.2078,3842.4,3841.4,5.10146191]
[1761914929420,1.38282968,3843.1,3843.0,2.2376]
[1761914929421,0.00260609,3843.1,3843.0,2.2376]
[1761914929621,0.58050609,3843.1,3843.0,11.6776]
[1761914929814,0.58050609,3843.1,3843.0,2.2376]
[1761914930018,0.59000609,3843.1,3842.6,0.7834]
[1761914930320,1.1653,3842.7,3842.6,1.3306]
[1761914930715,0.5779,3842.7,3842.6,1.8918]
[1761914930919,3.7857,3842.9,3842.8,1.8918]
[1761914931518,0.5779,3842.9,3842.8,1.8918]
[1761914932019,0.00260609,3843.1,3843.0,2.2481]
[1761914932826,1.952,3842.8,3842.7,0.5472]
[1761914933526,1.952,3842.8,3842.7,1.3306]
[1761914934430,1.952,3842.8,3842.7,1.8918]
[1761914935129,1.1653,3842.8,3842.7,42.6918]
[1761914936128,1.952,3842.8,3842.7,42.6918]
[1761914937221,1.952,3842.8,3842.7,40.8]
[1761914937723,1.952,3842.8,3842.7,41.5834]
[1761914938425,1.1653,3842.8,3842.7,41.5834]
[1761914938729,0.5779,3842.8,3842.7,41.5834]
[1761914938932,1.84820609,3843.1,3843.0,1.8186]
[1761914939329,2.46596472,3843.1,3843.0,1.8186]
[1761914939925,0.00260609,3843.1,3843.0,2.1355]
[1761914940134,3.9489,3844.0,3843.9,0.5034]
[1761914940329,3.7395,3844.0,3843.9,1.8186]
[1761914940528,4.4806,3844.0,3843.9,1.8186]
[1761914940838,4.4806,3844.0,3843.9,42.6186]
[1761914941030,1.2728,3844.0,3843.9,42.6186]
[1761914941230,0.0030145,3844.0,3843.9,42.6186]
[1761914942227,3.7395,3844.9,3844.8,0.5034]
[1761914942433,4.35898463,3844.9,3844.8,1.8186]
[1761914943235,4.36127711,3844.9,3844.8,1.8212677]
[1761914943736,1.8,3844.3,3843.8,0.7739]
[1761914943926,0.5317,3844.2,3844.1,1.0447]
[1761914944122,3.7395,3844.4,3844.3,1.0447]
[1761914944331,3.2078,3844.4,3844.3,1.8186]
[1761914944728,3.2078,3844.4,3844.3,1.82162918]
[1761914944934,5.62727784,3844.4,3844.3,1.82162918]
[1761914945329,4.35897784,3844.4,3844.3,1.82162918]
[1761914945529,3.82727784,3844.4,3844.3,1.82162918]
[1761914945929,3.2078,3844.4,3844.3,1.82162918]
[1761914946234,5.62769912,3844.4,3844.3,0.00302918]
[1761914946732,4.35939912,3844.4,3844.3,1.82162918]
[1761914947035,5.62769912,3844.4,3844.3,1.82162918]
[1761914947423,5.62769912,3844.4,3844.3,0.00302918]
[1761914948234,5.62769912,3844.4,3843.0,0.64488]
[1761914948235,1.2728,3843.3,3843.2,1.2773]
[1761914948438,1.2728,3843.3,3843.2,1.8186]
[1761914948639,1.2728,3843.3,3843.2,42.6186]
[1761914949337,1.2728,3843.3,3843.2,42.62180481]
[1761914950034,0.5272,3842.6,3840.4,1.86068467]
[1761914950337,0.7411,3840.9,3840.4,1.0447]
[1761914950530,1.36023812,3840.8,3840.7,0.5034]
[1761914950936,1.89193812,3840.8,3840.7,0.5034]
[1761914951140,2.43750022,3840.8,3840.7,0.00202724]
[1761914951336,2.43750022,3840.8,3840.7,0.53252724]
[1761914952031,2.43750022,3840.8,3840.7,1.91902724]
[1761914952032,1.89520022,3840.8,3840.7,1.91902724]
[1761914952232,1.36350022,3840.8,3840.7,1.91902724]
[1761914952944,1.36350022,3840.8,3840.7,42.71902724]
[1761914953235,0.0032621,3840.8,3840.7,42.71902724]
[1761914953540,7.7228,3842.0,3841.9,1.917]
[1761914953541,4.111,3842.0,3841.9,1.917]
[1761914953732,5.25785534,3842.0,3841.9,1.03]
[1761914954038,5.25785534,3842.0,3841.9,0.5305]
[1761914954339,5.26008938,3842.0,3841.9,0.5305]
[1761914955036,4.11323404,3842.0,3841.9,1.917]
[1761914955244,3.21003404,3842.0,3841.9,1.917]
[1761914956042,0.9032,3842.4,3841.9,1.917]
[1761914956043,1.4219,3842.9,3842.8,0.5305]
[1761914956242,2.05028029,3842.9,3842.8,0.5305]
[1761914956442,2.05038511,3842.9,3842.8,0.5305]
[1761914956644,3.2078,3843.0,3842.9,1.917]
[1761914957136,0.00191321,3843.0,3842.9,1.917]
[1761914957340,0.00191321,3843.0,3842.9,42.717]
[1761914957531,0.9032,3843.7,3843.6,0.5305]
[1761914957843,4.111,3843.9,3843.8,0.5305]
[1761914958440,4.111,3843.9,3843.8,1.9190228]
[1761914958441,3.21031316,3843.9,3843.8,1.9190228]
[1761914958942,3.21031316,3843.9,3843.8,42.7190228]
[1761914959636,0.9032,3844.3,3844.2,0.5305]
[1761914959937,1.53190681,3844.3,3844.2,1.9294]
[1761914960141,0.9032,3844.3,3844.2,1.9294]
[1761914960341,0.9032,3844.3,3844.2,1.1074]
[1761914960542,0.90583521,3844.3,3844.2,1.1074]
[1761914960742,0.5474,3843.9,3843.8,40.8020228]
[1761914960943,1.4166,3843.9,3843.8,40.8020228]
[1761914962341,2.0038,3843.9,3843.8,40.8020228]
[1761914966752,1.4166,3843.9,3843.8,41.6240228]
[1761914967051,3.2078,3844.0,3843.9,1.9668]
[1761914968250,4.6244,3844.0,3843.9,1.1448]
[1761914968552,2.0038,3843.9,3843.8,0.0020228]
[1761914971252,1.4166,3842.7,3842.6,0.5679]
[1761914971548,2.0038,3842.7,3842.6,0.5679]
[1761914971752,2.0038,3842.7,3842.6,41.3679]
[1761914972456,1.4166,3842.7,3842.6,41.3679]
[1761914972749,1.4166,3842.7,3842.6,41.37065993]
[1761914973551,1.4166,3842.7,3842.6,42.19265993]
[1761914973756,0.8692,3842.7,3842.6,42.19265993]
[1761914973958,0.5474,3843.0,3842.9,1.9668]
[1761914974256,4.3424,3843.5,3843.1,0.822]
[1761914974651,1.4166,3843.4,3843.3,0.5679]
[1761914974956,2.0038,3843.4,3843.3,0.5679]
[1761914975465,0.8692,3843.3,3842.8,9.421]
[1761914975752,3.2078,3843.5,3842.8,9.421]
[1761914975753,1.4166,3842.9,3842.8,9.9889]
[1761914975953,1.4166,3842.9,3842.8,0.5679]
[1761914976347,2.0038,3842.9,3842.8,0.5679]
[1761914976954,0.8692,3842.9,3842.8,1.9668]
[1761914977149,2.0038,3842.9,3842.8,1.1448]
[1761914977346,2.0038,3842.7,3842.6,40.80275993]
[1761914977551,5.2116,3842.7,3842.6,40.80275993]
[1761914978251,3.2078,3843.1,3843.0,1.3989]
[1761914978453,3.2078,3843.1,3843.0,11.3868]
[1761914979360,3.2078,3843.1,3843.0,11.6233]
[1761914979557,4.077,3843.7,3843.6,1.1448]
[1761914979758,4.6244,3843.7,3843.6,1.1448]
[1761914980959,4.6244,3843.7,3843.6,1.974]
[1761914981359,4.6244,3843.7,3843.6,1.1448]
[1761914982163,5.25819492,3843.7,3843.6,1.1448]
[1761914982758,5.83699492,3843.7,3843.6,1.1448]
[1761914983055,5.83699492,3843.7,3842.6,0.00275993]
[1761914983056,0.3447,3843.0,3842.6,0.00275993]
[1761914983248,5.1381,3842.7,3842.6,0.00275993]
[1761914983451,5.77282651,3842.7,3842.6,0.00275993]
[1761914986653,5.77282651,3842.7,3842.6,0.56675993]
[1761914986855,5.19402651,3842.7,3842.6,1.94415993]
[1761914987161,1.3515,3842.7,3842.6,1.94415993]
[1761914988157,4.5593,3842.7,3842.6,1.11495993]
[1761914988357,5.1381,3842.7,3842.6,1.11495993]
[1761914988557,5.1381,3842.7,3842.6,41.36675993]
[1761914989456,0.3447,3843.0,3842.6,42.19595993]
[1761914989658,3.7761,3842.7,3842.6,40.80275993]
[1761914989854,4.3549,3842.7,3842.6,40.80275993]
[1761914990055,5.1381,3842.7,3842.6,40.80275993]
[1761914991363,3.2078,3842.7,3842.6,41.63195993]
[1761914991667,3.2078,3843.1,3843.0,1.9414]
[1761914991862,3.84242356,3843.1,3843.0,1.9414]
[1761914992866,0.7832,3843.0,3842.8,10.2452]
[1761914993170,0.7832,3843.0,3842.9,1.1122]
[1761914993669,3.2078,3843.1,3843.0,1.9414]
[1761914993868,4.62573237,3843.1,3843.0,1.9414]
[1761914994070,5.19403237,3843.1,3843.0,1.9414]
[1761914994768,5.19403237,3843.1,3843.0,1.1122]
[1761914995161,5.19403237,3843.1,3842.6,41.63195993]
[1761914995162,0.7832,3843.0,3842.6,41.63195993]
[1761914995360,1.3515,3842.7,3842.6,41.63195993]
[1761914995561,0.7832,3843.0,3842.9,1.9414]
[1761914995763,1.98626523,3843.0,3842.9,1.9414]
[1761914996469,0.7832,3843.0,3842.9,1.9414]
[1761914997171,2.90987454,3843.0,3842.9,0.564]
[1761914997668,1.9303,3842.8,3842.7,9.414]
[1761914997865,1.9303,3842.8,3842.7,10.5262]
[1761914998458,1.9303,3842.8,3842.7,11.3554]
[1761914998663,1.3515,3842.8,3842.7,11.3554]
[1761914998863,0.7832,3842.8,3842.7,11.3554]
[1761914999059,1.3515,3843.0,3842.9,1.9414]
[1761914999376,1.9867135,3843.0,3842.9,1.9414]
[1761915000379,0.6352135,3843.0,3842.9,1.9414]
[1761915000677,3.2078,3843.1,3843.0,1.9293]
[1761915000968,5.0016,3843.7,3843.6,0.9874]
[1761915001174,5.71838382,3843.7,3843.6,0.9874]
[1761915001566,5.63701101,3843.7,3843.6,0.9874]
[1761915002672,5.63701101,3843.7,3843.2,1.752]
[1761915002673,1.2853,3843.3,3843.2,1.752]
[1761915002871,1.92071101,3843.3,3843.2,0.9874]
[1761915003377,1.92071101,3843.3,3843.2,41.7874]
[1761915003574,2.42921101,3843.3,3843.2,41.7874]
[1761915003775,5.63701101,3843.3,3843.2,40.8]
[1761915005474,3.84321101,3843.3,3843.2,41.5646]
[1761915005672,3.84321101,3843.3,3842.6,0.00275993]
[1761915005673,1.0176,3842.7,3842.6,0.00275993]
[1761915005871,2.42829895,3842.7,3842.6,0.99015993]
[1761915006171,2.42829895,3842.7,3842.6,41.79015993]
[1761915006371,2.42829895,3842.7,3842.6,41.30695993]
[1761915006582,2.42829895,3842.7,3842.6,40.80275993]
[1761915007581,0.63449895,3842.7,3842.6,41.56735993]
[1761915007979,1.41069895,3842.7,3842.6,41.56735993]
[1761915009083,2.42829895,3842.7,3842.6,40.80275993]
[1761915010176,2.42829895,3842.7,3842.6,0.00275993]
[1761915011478,2.42829895,3842.7,3842.6,0.96745993]
[1761915011785,2.39389895,3842.7,3842.6,0.00275993]
[1761915015080,2.01472254,3842.7,3841.1,3.2078]
[1761915015282,2.01472254,3842.7,3840.0,0.2856]
[1761915015283,4.4711,3841.5,3841.4,0.9647]
[1761915015479,5.10559895,3841.5,3841.4,0.9647]
[1761915015878,5.81919895,3841.5,3841.4,0.9647]
[1761915016184,5.18688644,3841.5,3841.4,0.96744162]
[1761915016878,5.82146929,3841.5,3841.4,0.96744162]
[1761915017576,5.82146929,3841.5,3841.4,1.68754162]
[1761915017778,5.34736929,3841.5,3841.4,1.68754162]
[1761915018285,4.71278644,3841.5,3841.4,1.68754162]
[1761915018583,5.18688644,3841.5,3841.4,0.96744162]
[1761915019085,4.71278644,3841.5,3841.4,1.66984162]
[1761915019277,1.16708644,3841.5,3841.4,1.66984162]
[1761915019473,0.00218644,3841.5,3841.4,1.66984162]
[1761915019978,0.00218644,3841.5,3841.4,42.46984162]
[1761915021883,3.2078,3842.0,3841.9,1.6134]
[1761915022086,3.2078,3842.0,3841.9,11.0174]
[1761915022975,3.21088105,3842.0,3841.9,11.0174]
[1761915026487,0.00308105,3842.0,3841.9,11.0174]
[1761915026988,0.00308105,3842.0,3841.9,14.2252]
[1761915027779,0.00308105,3842.0,3841.9,45.6212]
[1761915027979,0.00308105,3842.0,3841.9,55.0232]
[1761915028983,1.44158105,3842.0,3841.9,51.8144]
[1761915029378,1.89578105,3842.0,3841.9,41.711]
[1761915029686,1.89578105,3842.0,3841.9,51.111]
[1761915030271,1.89578105,3842.0,3841.9,41.711]
[1761915030678,1.89578105,3842.0,3841.9,51.111]
[1761915031585,1.89578105,3842.0,3841.9,51.8134]
[1761915031586,0.69468105,3842.0,3841.9,51.8134]
[1761915031884,0.00308105,3842.0,3841.9,51.8134]
[1761915032994,4.3507,3842.7,3842.6,1.6134]
[1761915033286,1.3266734,3842.7,3842.6,11.0124]
[1761915033488,1.7779734,3842.7,3842.6,11.0124]
[1761915033990,1.78062889,3842.7,3842.6,51.8124]
[1761915034885,1.14555549,3842.7,3842.6,51.8124]
[1761915035190,1.78066716,3842.7,3842.6,51.8124]
[1761915035891,5.44266716,3842.7,3842.6,51.11]
[1761915036593,5.44266716,3842.7,3842.6,51.8094]
[1761915037487,3.84556716,3842.7,3842.6,51.8094]
[1761915037789,3.21045549,3842.7,3842.6,51.8094]
[1761915038389,4.35335549,3842.7,3842.6,42.4134]
[1761915038586,4.35335549,3842.7,3842.6,51.8084]
[1761915039284,3.90205549,3842.7,3842.6,51.8084]
[1761915040191,0.69425549,3842.7,3842.6,51.8084]
[1761915040689,1.14555549,3842.7,3842.6,51.8084]
[1761915040886,1.59975549,3842.7,3842.6,51.106]
[1761915041792,5.44249672,3842.7,3842.6,40.8]
[1761915042988,4.80755549,3842.7,3842.6,41.4009]
[1761915043888,1.59975549,3842.7,3842.6,41.4009]
[1761915044893,0.00265549,3842.7,3842.6,41.4009]
[1761915045990,1.12165549,3842.7,3842.6,40.8]
[1761915046195,1.60395549,3842.7,3842.6,40.8]
[1761915046691,4.81175549,3842.7,3842.6,50.19]
[1761915046998,5.44667378,3842.7,3842.6,50.19]
[1761915047393,2.23887378,3842.7,3842.6,50.19]
[1761915047795,1.12165549,3842.7,3842.6,50.7909]
[1761915047997,0.66095549,3842.7,3842.6,50.7909]
[1761915048297,1.7569884,3842.7,3842.6,50.7909]
[1761915049199,1.2962884,3842.7,3842.6,50.7909]
[1761915049598,0.00265549,3842.7,3842.6,50.7909]
[1761915051301,0.63870982,3842.7,3842.6,50.7909]
[1761915052499,0.00265549,3842.7,3842.6,50.7909]
[1761915054902,0.66095549,3842.7,3842.6,50.7909]
[1761915055405,0.00265549,3842.7,3842.6,50.7909]
[1761915057307,0.00265549,3842.7,3842.6,50.7849]
[1761915058307,0.00265549,3842.7,3842.6,41.4009]
[1761915058508,0.00265549,3842.7,3842.6,50.7839]
[1761915060008,1.60395549,3842.7,3842.6,50.181]
[1761915060209,2.24007681,3842.7,3842.6,50.181]
[1761915060513,2.24007681,3842.7,3842.6,50.7819]
[1761915060708,2.24007681,3842.7,3842.6,50.181]
[1761915061400,2.24007681,3842.7,3842.6,40.8]
[1761915062307,2.32146943,3842.7,3842.6,40.8]
[1761915064115,2.32146943,3842.7,3842.6,41.3073]
[1761915064315,2.24007681,3842.7,3842.6,41.3073]
[1761915065717,2.24007681,3842.7,3842.6,40.8]
[1761915066919,2.24007681,3842.7,3842.6,41.3073]
[1761915067115,1.75777681,3842.7,3842.6,41.3073]
[1761915067914,0.63877681,3842.7,3842.6,41.3073]
[1761915068612,0.00265549,3842.7,3842.6,41.3073]
[1761915069323,5.21790682,3842.7,3842.6,50.176]
[1761915069623,5.21790682,3842.7,3842.6,40.8]
[1761915072221,5.29930141,3842.7,3842.6,40.8]
[1761915072728,1.4103,3842.3,3842.2,10.2034]
[1761915072923,2.04705133,3842.3,3842.2,10.2034]
[1761915073117,2.04705133,3842.3,3841.5,3.4296]
[1761915073118,5.25485133,3842.3,3841.5,3.6771]
[1761915073426,0.988,3841.7,3841.6,0.8294]
[1761915073627,0.988,3841.7,3841.6,46.7884]
[1761915073819,0.988,3841.7,3841.6,51.0024]
[1761915074127,0.988,3841.7,3841.6,51.4717]
[1761915075025,1.62436159,3841.7,3841.6,51.4717]
[1761915075226,0.988,3841.7,3841.6,51.4717]
[1761915077729,2.04603549,3841.7,3841.6,41.6294]
[1761915078922,2.04603549,3841.7,3841.6,42.0987]
[1761915078923,1.23393549,3841.7,3841.6,42.0987]
[1761915079127,0.5982,3841.9,3841.8,1.2987]
[1761915079327,1.23288954,3841.9,3841.8,1.2987]
[1761915079828,1.62268954,3841.9,3841.8,1.2987]
[1761915080022,2.04498954,3841.9,3841.8,0.8294]
[1761915080221,0.8121,3841.7,3841.6,40.8]
[1761915080418,1.44758954,3841.7,3841.6,40.8]
[1761915081333,1.99478954,3841.7,3841.6,40.8]
[1761915082328,1.18268954,3841.7,3841.6,40.8]
[1761915082530,1.55948954,3841.7,3841.6,40.8]
[1761915083526,1.92478954,3841.7,3841.6,40.8]
[1761915084240,1.2893,3841.7,3841.6,41.2255]
[1761915084538,1.92455708,3841.7,3841.6,41.2255]
[1761915084736,1.55925708,3841.7,3841.6,41.2255]
[1761915084937,1.55925708,3841.7,3841.6,40.8]
[1761915085136,1.55925708,3841.7,3841.6,41.2255]
[1761915085433,1.55925708,3841.7,3841.6,40.8]
[1761915086232,1.92455708,3841.7,3841.6,40.8]
[1761915088137,1.92455708,3841.7,3841.6,41.2255]
[1761915088840,1.18245708,3841.7,3841.6,41.2255]
[1761915089239,1.55925708,3841.7,3841.6,41.2255]
[1761915089941,1.92455708,3841.7,3841.6,40.8]
[1761915091945,1.92455708,3841.7,3841.6,41.2255]
[1761915092642,1.92455708,3841.7,3841.6,40.8]
[1761915093144,3.2078,3841.9,3841.8,1.1913]
[1761915093340,3.84322875,3841.9,3841.8,1.1913]
[1761915093534,3.2078,3841.9,3841.8,1.1913]
[1761915093737,3.2078,3842.3,3842.0,0.0905]
[1761915093935,0.63550453,3842.2,3842.1,10.5523]
[1761915094632,3.755,3842.3,3842.2,1.1913]
[1761915094841,4.39364175,3842.3,3842.2,1.1913]
[1761915095037,3.84644175,3842.3,3842.2,1.1913]
[1761915095232,0.00265549,3842.7,3842.6,1.1913]
[1761915096547,0.54985549,3842.7,3842.6,41.9913]
[1761915096939,0.00265549,3842.7,3842.6,41.9913]
[1761915102352,0.00265549,3842.7,3842.6,45.1991]
[1761915103655,3.2078,3843.2,3842.6,45.1991]
[1761915103656,3.2078,3843.2,3843.1,1.0545]
[1761915103858,3.7601,3843.2,3843.1,10.4075]
[1761915104247,0.5523,3843.2,3843.1,10.4075]
[1761915104448,0.6674,3843.5,3843.4,1.0545]
[1761915104745,0.64041816,3843.5,3843.4,1.0545]
[1761915104951,0.00321326,3843.5,3843.4,10.4065]
[1761915105154,3.2078,3844.5,3844.4,0.703]
[1761915105454,4.1721,3844.5,3844.4,0.703]
[1761915105645,4.1721,3844.5,3844.4,41.503]
[1761915105844,4.7244,3844.5,3844.4,41.503]
[1761915106053,4.72729235,3844.5,3844.4,41.50608944]
[1761915106249,4.35989235,3844.5,3844.4,41.85758944]
[1761915106657,3.21069235,3844.5,3844.4,41.85758944]
[1761915108048,3.76299235,3844.5,3844.4,41.85758944]
[1761915108552,3.21069235,3844.5,3844.4,41.85758944]
[1761915108752,0.55519235,3844.5,3844.4,41.85758944]
[1761915108959,1.15209235,3844.5,3844.4,41.50608944]
[1761915109154,1.51949235,3844.5,3844.4,41.50608944]
[1761915110458,1.51949235,3844.5,3844.4,50.85308944]
[1761915110661,4.72729235,3844.5,3844.4,40.80308944]
[1761915111159,4.72729235,3844.5,3844.4,0.00308944]
[1761915111160,13.36249459,3844.5,3844.4,0.00308944]
[1761915112051,5.36249459,3844.5,3844.4,0.00308944]
[1761915114461,13.36249459,3844.5,3844.4,0.00308944]
[1761915115759,5.36249459,3844.5,3844.4,0.00308944]
[1761915120665,5.36249459,3844.5,3844.4,0.70608944]
[1761915121167,3.36249459,3844.5,3844.4,0.52488944]
[1761915121466,4.10169459,3844.5,3844.4,0.52488944]
[1761915121858,4.10169459,3844.5,3844.4,0.00308944]
[1761915122060,4.10359853,3844.5,3844.4,0.00308944]
[1761915122254,0.7392,3843.9,3843.8,0.5218]
[1761915122461,4.58220224,3843.9,3843.8,0.5218]
[1761915122662,3.2078,3844.3,3844.2,1.279]
[1761915122857,3.2078,3844.3,3844.2,42.079]
[1761915123264,3.2078,3844.3,3844.2,42.08142682]
[1761915123462,0.00190394,3844.5,3844.4,1.279]
[1761915128073,3.2078,3845.5,3845.4,1.279]
[1761915128870,3.95010617,3845.5,3845.4,1.279]
[1761915129374,0.7392,3845.1,3845.0,1.1409]
[1761915129569,0.7392,3845.1,3845.0,1.5156]
[1761915131073,3.21090617,3845.5,3845.0,1.5156]
[1761915131074,3.95130617,3845.5,3845.4,0.9282]
[1761915131274,4.0326452,3845.5,3845.4,0.9282]
[1761915131865,4.0326452,3845.5,3845.4,1.2711]
[1761915132173,4.0326394,3845.5,3845.4,1.2711]
[1761915133061,4.4478394,3845.5,3845.4,0.9282]
[1761915133265,4.4478394,3845.5,3845.4,0.555]
[1761915133677,4.4478394,3845.5,3845.0,0.2366]
[1761915133678,0.7404,3845.1,3845.0,0.9527]
[1761915134077,0.7404,3845.1,3845.0,1.5077]
[1761915134680,1.37597974,3845.1,3845.0,1.5077]
[1761915134880,1.00507974,3845.1,3845.0,1.5077]
[1761915137675,0.63557974,3845.1,3845.0,1.5077]
[1761915140084,0.63557974,3845.1,3845.0,10.8307]
[1761915140484,0.63557974,3845.1,3845.0,51.6307]
[1761915140786,1.37597974,3845.1,3845.0,42.3077]
[1761915141283,4.58377974,3845.1,3845.0,42.3077]
[1761915143685,4.21287974,3845.1,3845.0,42.3077]
[1761915144784,0.00310617,3845.5,3845.4,0.6868]
[1761915145081,0.00310617,3845.5,3845.4,1.2193]
[1761915145686,0.63854723,3845.5,3845.4,1.2193]
[1761915145984,0.00310617,3845.5,3845.4,1.2193]
[1761915146183,3.2078,3846.4,3846.3,0.6868]
[1761915146487,5.005977,3846.4,3846.3,1.2193]
[1761915147185,4.637077,3846.4,3846.3,1.2193]
[1761915147580,4.64035838,3846.4,3846.3,1.2193]
[1761915147979,5.00925838,3846.4,3846.3,0.5325]
[1761915148481,3.92785838,3846.4,3846.3,1.2193]
[1761915148780,4.64035838,3846.4,3846.3,1.2193]
[1761915148984,5.00925838,3846.4,3846.3,0.8799]
[1761915149185,4.64035838,3846.4,3846.3,1.2193]
[1761915149387,4.29215838,3846.4,3846.3,1.2193]
[1761915149586,3.92785838,3846.4,3846.3,1.2193]
[1761915149785,4.29215838,3846.4,3846.3,1.2193]
[1761915149987,3.84654444,3846.4,3846.3,1.2193]
[1761915150786,0.63874444,3846.4,3846.3,1.2193]
[1761915151891,4.92794444,3846.4,3846.3,42.0193]
[1761915152090,4.92794444,3846.4,3846.3,0.5325]
[1761915152287,0.7125,3846.1,3846.0,0.5666]
[1761915152494,1.34796306,3846.1,3846.0,41.3666]
[1761915152696,0.63546306,3846.1,3846.0,41.3666]
[1761915152993,3.21108138,3846.4,3846.3,1.2193]
[1761915153185,3.84608387,3846.4,3846.3,1.2193]
[1761915153580,4.55858387,3846.4,3846.3,1.2193]
[1761915154589,4.92748387,3846.4,3846.0,41.0192]
[1761915154795,0.7125,3846.1,3846.0,41.0192]
[1761915154989,1.34750249,3846.1,3846.0,41.0192]
[1761915155295,1.34750249,3846.1,3846.0,41.5517]
[1761915156986,0.63500249,3846.1,3846.0,41.5517]
[1761915159099,0.00328138,3846.4,3846.3,1.2193]
[1761915159302,0.36758138,3846.4,3846.3,1.2193]
[1761915159494,4.55597444,3846.4,3846.3,1.2193]
[1761915162399,4.86127444,3846.4,3846.3,0.5325]
[1761915162588,4.86127444,3846.4,3846.3,0.8966]
[1761915163497,4.55597444,3846.4,3846.3,0.8966]
[1761915164799,4.86127444,3846.4,3846.3,0.8966]
[1761915166392,4.55597444,3846.4,3846.3,0.8966]
[1761915167301,4.55597444,3846.4,3846.3,1.2427]
[1761915168297,4.20777444,3846.4,3846.3,1.2427]
[1761915168503,3.84347444,3846.4,3846.3,1.2427]
[1761915169804,4.14877444,3846.4,3846.3,1.2427]
[1761915170304,3.84347444,3846.4,3846.3,1.2427]
[1761915171697,4.14877444,3846.4,3846.3,1.2427]
[1761915172799,3.84347444,3846.4,3846.3,1.2427]
[1761915174196,4.75937444,3846.4,3846.3,1.2427]
[1761915174403,4.45407444,3846.4,3846.3,1.2427]
[1761915175613,4.75937444,3846.4,3846.3,1.2427]
[1761915175907,4.8406878,3846.4,3846.3,0.8966]
[1761915176708,0.9159,3846.1,3846.0,50.3142]
[1761915176904,1.54829306,3846.1,3846.0,9.8783]
[1761915177208,1.24299306,3846.1,3846.0,10.3758]
[1761915177411,0.63239306,3846.1,3846.0,51.5219]
[1761915177601,0.3053,3846.3,3846.2,1.2077]
[1761915177908,1.32639895,3846.3,3846.2,1.2077]
[1761915180211,1.32639877,3846.3,3846.2,1.2077]
[1761915180799,0.71579877,3846.3,3846.2,1.2077]
[1761915181198,1.32639877,3846.3,3846.2,1.2077]
[1761915182417,1.02109877,3846.3,3846.2,1.2077]
[1761915182713,1.32639877,3846.3,3846.2,1.2077]
[1761915183610,0.71579877,3846.3,3846.2,1.2077]
[1761915183815,0.94749877,3846.3,3846.2,1.2077]
[1761915184311,0.71579877,3846.3,3846.2,1.2077]
[1761915184817,0.6344811,3846.3,3846.2,1.2077]
[1761915186912,1.0978811,3846.3,3846.2,1.2077]
[1761915187113,0.6951,3846.1,3846.0,0.6804]
[1761915187320,1.41089504,3846.1,3846.0,0.9968]
[1761915187610,0.6951,3845.7,3845.6,0.3164]
[1761915187820,0.6951,3845.6,3845.5,0.2192]
[1761915188108,1.41090821,3845.6,3845.5,0.6804]
[1761915188613,1.41090821,3845.6,3845.5,0.9968]
[1761915189007,1.0978811,3845.6,3845.5,0.9968]
[1761915189325,0.6344811,3845.6,3845.5,1.3042]
[1761915193811,0.41608138,3846.4,3846.3,1.0562]
[1761915194016,0.71740492,3846.4,3846.3,1.0562]
[1761915194210,0.63608893,3846.4,3846.3,1.0562]
[1761915194412,0.84238893,3846.4,3846.3,10.3402]
[1761915194717,0.41608138,3846.4,3846.3,10.3402]
[1761915195020,1.33668516,3846.4,3846.3,0.4608]
[1761915195413,0.6191,3846.1,3846.0,0.1815]
[1761915195614,3.90821665,3846.1,3846.0,0.1815]
[1761915195816,4.25358713,3846.1,3846.0,0.4776]
[1761915196118,4.25358713,3846.1,3846.0,1.2377]
[1761915197315,1.38022359,3846.7,3846.3,0.2961]
[1761915197509,0.2063,3846.7,3846.6,1.0562]
[1761915198518,0.41526084,3846.7,3846.6,1.0562]
[1761915199615,0.00246084,3846.7,3846.6,1.0562]
[1761915202023,3.4536,3847.3,3847.2,1.1261]
[1761915202317,3.6994,3847.3,3847.2,1.1261]
[1761915203023,4.02895319,3847.3,3847.2,0.48055911]
[1761915203220,3.21025668,3847.3,3847.2,1.12795911]
[1761915204419,3.21025668,3847.3,3847.2,10.40495911]
[1761915204822,3.45605668,3847.3,3847.2,51.20495911]
[1761915205525,3.21025668,3847.3,3847.2,51.20495911]
[1761915206124,0.00245668,3847.3,3847.2,54.41275911]
[1761915206320,0.6125,3846.6,3846.5,1.1261]
[1761915206516,0.7919,3847.0,3846.9,0.3208]
[1761915206827,4.2668,3847.1,3847.0,1.1261]
[1761915207030,1.2384,3847.0,3846.9,40.8]
[1761915207231,1.2384,3847.0,3846.9,50.075]
[1761915207428,0.44945867,3847.0,3846.9,50.55616888]
[1761915207628,0.00295867,3847.0,3846.9,50.55616888]
[1761915208427,1.55962359,3848.0,3847.7,1.1261]
[1761915208633,0.7628,3848.0,3847.9,1.1261]
[1761915208833,1.2384,3848.0,3847.9,1.1261]
[1761915209426,1.06233878,3848.0,3847.9,1.1261]
[1761915209721,1.06233878,3848.0,3847.9,10.3991]
[1761915209925,0.76613878,3848.0,3847.9,10.3991]